bitfinex/quotes_ETHUSD_20250219
["timestamp","ask_amount","ask_price","bid_price","bid_amount"]
[1739954101852,3.67068,2724.3,2723.9,6.76956]
[1739954102066,3.67068,2724.3,2724.1,0.27379406]
[1739954102267,4.4434,2724.2,2724.1,0.27379406]
[1739954102765,4.4734,2724.2,2724.1,0.27379406]
[1739954103535,3.67121,2723.9,2723.5,0.38606718]
[1739954103966,3.67121,2723.9,2723.4,0.27379406]
[1739954104269,3.67121,2723.9,2723.4,0.98921257]
[1739954104875,3.67121,2723.9,2723.4,0.71541851]
[1739954105374,3.67158,2723.7,2723.4,0.71541851]
[1739954106369,3.6717,2723.6,2723.2,0.7472571]
[1739954106539,3.67176,2723.5,2723.2,0.7472571]
[1739954106878,0.8323,2723.6,2723.2,0.7472571]
[1739954107177,3.6715,2723.7,2723.2,0.7472571]
[1739954110476,3.6715,2723.7,2723.1,0.8715]
[1739954110775,7.34309,2723.7,2723.1,1.32955206]
[1739954110961,0.81,2723.9,2723.1,0.8715]
[1739954111156,7.344,2723.4,2723.1,0.0992]
[1739954111352,3.672,2723.4,2723.1,0.0992]
[1739954111689,3.67198,2723.4,2723.1,0.0992]
[1739954112389,3.67212,2723.3,2723.1,0.0992]
[1739954113287,3.67175,2723.5,2723.1,0.0992]
[1739954113453,3.67189,2723.4,2723.1,0.0992]
[1739954113853,3.67175,2723.5,2723.1,0.0992]
[1739954114468,13.67155,2723.7,2723.1,3.77146]
[1739954114677,13.67155,2723.7,2723.2,0.7614]
[1739954115891,3.67171,2723.6,2723.2,0.7614]
[1739954116255,10.0,2723.7,2723.2,0.7614]
[1739954116450,13.67147,2723.7,2723.2,0.7614]
[1739954116688,3.67179,2723.5,2723.2,0.7614]
[1739954117155,0.8193,2723.6,2723.1,0.0992]
[1739954117517,3.67194,2723.4,2723.1,0.0992]
[1739954118658,0.8193,2723.6,2723.1,0.0992]
[1739954118858,3.67174,2723.5,2723.1,0.0992]
[1739954119110,3.67194,2723.4,2723.1,0.0992]
[1739954121112,3.67215,2723.2,2723.1,0.0992]
[1739954121258,3.67202,2723.3,2723.1,0.0992]
[1739954121696,3.67215,2723.2,2723.1,0.0992]
[1739954122272,3.67203,2723.3,2723.1,0.0992]
[1739954123088,3.67184,2723.5,2723.1,0.0992]
[1739954123276,7.34368,2723.5,2723.1,0.0992]
[1739954123487,3.67188,2723.4,2723.1,0.0992]
[1739954123816,3.67215,2723.2,2723.1,0.0992]
[1739954125624,6.70215,2723.2,2723.1,0.0992]
[1739954126825,7.48975,2723.2,2723.1,0.0992]
[1739954127308,6.70215,2723.2,2723.1,0.0992]
[1739954127489,3.03,2723.2,2723.1,0.0992]
[1739954127685,6.70215,2723.2,2723.1,0.0992]
[1739954128729,3.70215,2723.2,2723.1,0.0992]
[1739954129809,6.70215,2723.2,2723.1,0.0992]
[1739954130129,8.491767,2723.2,2723.1,0.0992]
[1739954130903,8.461767,2723.2,2723.1,0.0992]
[1739954131420,7.709567,2723.2,2723.1,0.0992]
[1739954131627,6.67215,2723.2,2723.1,0.0992]
[1739954136981,7.49505,2723.2,2723.1,0.0992]
[1739954137220,13.06492049,2723.2,2723.1,0.0992]
[1739954137521,13.61492049,2723.2,2723.1,0.0992]
[1739954139320,12.87505,2723.2,2723.1,0.0992]
[1739954139625,9.05215,2723.2,2723.1,0.0992]
[1739954139924,11.75215,2723.2,2723.1,0.0992]
[1739954140296,13.371957,2723.2,2723.1,0.0992]
[1739954140935,8.75215,2723.2,2723.1,0.0992]
[1739954141307,8.75215,2723.2,2723.1,0.0492]
[1739954142203,11.75215,2723.2,2723.1,0.0492]
[1739954142533,6.37215,2723.2,2723.1,0.0492]
[1739954142906,107.02139,2723.0,2722.6,1.23850516]
[1739954143104,107.02139,2723.0,2722.7,0.27479608]
[1739954143436,107.02139,2723.0,2722.7,0.50749361]
[1739954144542,103.3489,2723.0,2722.7,0.50749361]
[1739954144745,3.67257,2722.9,2722.8,0.23269753]
[1739954145041,107.02136,2723.0,2722.8,0.23269753]
[1739954145244,103.3489,2723.0,2722.8,0.23269753]
[1739954145446,103.3489,2723.0,2722.9,0.8155]
[1739954146728,103.3489,2723.0,2722.9,1.04819753]
[1739954149671,107.02132,2723.0,2722.9,0.23269753]
[1739954149828,110.83702161,2723.0,2722.9,0.23269753]
[1739954151150,3.6726,2722.9,2722.4,0.23269753]
[1739954151345,3.67276,2722.8,2722.4,0.23269753]
[1739954151907,3.6726,2722.9,2722.4,0.23269753]
[1739954152106,3.67292,2722.7,2722.4,0.23269753]
[1739954152525,3.67283,2722.7,2722.4,0.23269753]
[1739954152726,3.67283,2722.7,2722.5,0.23269753]
[1739954153086,7.34559,2722.8,2722.5,0.23269753]
[1739954153361,3.6729,2722.7,2722.5,0.23269753]
[1739954154651,3.6729,2722.7,2722.6,0.23269753]
[1739954154852,103.3789,2723.0,2722.6,0.23269753]
[1739954155011,103.3789,2723.0,2722.9,3.67255]
[1739954155209,103.3789,2723.0,2722.9,5.286633]
[1739954155445,103.3789,2723.0,2722.9,1.614083]
[1739954155651,103.3489,2723.0,2722.9,1.614083]
[1739954156650,103.3489,2723.0,2722.9,1.40495919]
[1739954157221,107.02132,2723.0,2722.9,0.60535919]
[1739954157952,107.02132,2723.0,2722.1,0.7707]
[1739954157953,3.67255,2722.9,2722.1,0.7707]
[1739954158524,3.67312,2722.5,2722.1,0.7707]
[1739954158720,3.6729,2722.7,2722.1,0.7707]
[1739954158920,104.1413,2723.0,2722.1,5.46149631]
[1739954159223,3.67259,2722.9,2722.3,3.67324]
[1739954159438,107.02138,2723.0,2722.4,4.43892]
[1739954159757,107.02138,2723.0,2722.5,3.67304]
[1739954159934,103.3489,2723.0,2722.7,0.7955]
[1739954160344,107.02135,2723.0,2722.7,0.7955]
[1739954160661,103.3489,2723.0,2722.7,0.7955]
[1739954161924,103.3489,2723.0,2722.7,4.46825]
[1739954162124,103.3489,2723.0,2722.7,0.7955]
[1739954162955,107.02132,2723.0,2722.7,0.7955]
[1739954163338,103.3489,2723.0,2722.7,0.7955]
[1739954164263,107.02133,2723.0,2722.2,9.03341]
[1739954164461,3.67255,2722.9,2722.4,0.8251]
[1739954165039,3.67295,2722.7,2722.4,0.8251]
[1739954165269,3.67317,2722.5,2722.2,6.1381]
[1739954166646,3.67288,2722.7,2722.2,6.1381]
[1739954166862,3.67304,2722.6,2722.2,7.119778]
[1739954167031,3.6732,2722.5,2722.2,6.1381]
[1739954167461,3.67304,2722.6,2722.2,6.1381]
[1739954167655,7.34611,2722.6,2722.2,6.1381]
[1739954167856,3.67304,2722.6,2722.2,6.1381]
[1739954168032,7.34555,2722.8,2722.2,6.1381]
[1739954168227,3.67276,2722.8,2722.2,10.793259]
[1739954168432,107.0214,2723.0,2722.3,3.67329]
[1739954168657,3.67269,2722.8,2722.3,3.67329]
[1739954169267,3.67269,2722.8,2722.2,7.119779]
[1739954169455,3.67312,2722.5,2722.2,6.1381]
[1739954169650,103.3489,2723.0,2722.2,6.1381]
[1739954169856,3.67283,2722.7,2722.2,9.81158]
[1739954170061,103.3489,2723.0,2722.2,6.1381]
[1739954170062,3.67309,2722.5,2722.2,6.1381]
[1739954170587,7.34577,2722.7,2722.2,6.1381]
[1739954170874,3.67284,2722.7,2722.3,0.23295399]
[1739954171428,3.67316,2722.5,2722.3,0.23295399]
[1739954171664,7.34581,2722.7,2722.3,0.23295399]
[1739954171875,3.67289,2722.7,2722.3,0.23295399]
[1739954172476,3.67262,2722.9,2722.3,0.23295399]
[1739954172677,3.67262,2722.9,2722.3,3.90622399]
[1739954172883,3.6727,2722.8,2722.3,5.27851139]
[1739954173278,3.6727,2722.8,2722.4,0.23295399]
[1739954174043,3.67262,2722.9,2722.4,0.23295399]
[1739954174238,107.02134,2723.0,2722.4,0.26968331]
[1739954174467,107.02134,2723.0,2722.4,0.23295399]
[1739954174468,103.3489,2723.0,2722.4,0.23295399]
[1739954174680,3.67276,2722.8,2722.4,0.23295399]
[1739954174841,3.67285,2722.7,2722.4,0.23295399]
[1739954175041,3.6726,2722.9,2722.4,0.23295399]
[1739954175273,107.02139,2723.0,2722.4,7.57923399]
[1739954175476,107.02139,2723.0,2722.4,3.90608399]
[1739954175640,3.67257,2722.9,2722.5,1.04995399]
[1739954176157,3.6727,2722.8,2722.5,1.04995399]
[1739954176571,3.67284,2722.7,2722.5,0.23295399]
[1739954177261,3.67264,2722.9,2722.3,1.12492966]
[1739954177462,3.67269,2722.8,2722.3,1.12492966]
[1739954177660,3.67269,2722.8,2722.3,4.79828966]
[1739954177974,3.67269,2722.8,2722.3,1.12492966]
[1739954179260,3.67285,2722.7,2722.4,0.23227611]
[1739954179465,3.67264,2722.9,2722.4,0.23227611]
[1739954179684,3.67264,2722.9,2722.4,3.90548611]
[1739954180688,94.64007423,2722.0,2721.9,7.70060853]
[1739954180888,94.64007423,2722.0,2721.9,13.06060853]
[1739954182995,94.64007423,2722.0,2721.9,15.46928864]
[1739954183860,94.64007423,2722.0,2721.9,10.59283853]
[1739954184262,94.64007423,2722.0,2721.9,14.14283853]
[1739954184494,94.64007423,2722.0,2721.9,16.17539239]
[1739954186455,94.64007423,2722.0,2721.9,15.62539239]
[1739954187790,94.64007423,2722.0,2721.9,13.59283853]
[1739954189491,94.64007423,2722.0,2721.9,6.91893853]
[1739954189673,94.64007423,2722.0,2721.9,6.11173853]
[1739954189874,94.64007423,2722.0,2721.9,0.75173853]
[1739954190475,94.64007423,2722.0,2721.9,4.42563853]
[1739954191268,94.64007423,2722.0,2721.7,6.1341]
[1739954191269,94.64007423,2722.0,2721.7,0.7741]
[1739954191469,94.64007423,2722.0,2721.4,5.36]
[1739954191470,3.6739,2721.9,2721.5,0.831]
[1739954192286,99.08414423,2722.0,2721.5,4.50533]
[1739954192488,95.41037423,2722.0,2721.5,0.831]
[1739954192719,99.08414423,2722.0,2721.5,0.831]
[1739954193090,99.08414423,2722.0,2721.6,0.3721677]
[1739954193511,94.64007423,2722.0,2721.8,3.67394]
[1739954193677,94.64007423,2722.0,2721.9,4.4291]
[1739954194420,94.64007423,2722.0,2721.9,5.03300225]
[1739954196323,94.64007423,2722.0,2721.9,5.78474078]
[1739954197705,94.64007423,2722.0,2721.9,6.17245044]
[1739954197900,94.64007423,2722.0,2721.9,7.81807055]
[1739954199531,94.64007423,2722.0,2721.9,7.43036089]
[1739954200838,94.64007423,2722.0,2721.9,3.75646089]
[1739954200998,94.64007423,2722.0,2721.9,7.43036089]
[1739954201926,94.64007423,2722.0,2721.9,1.35564078]
[1739954202126,94.64007423,2722.0,2721.9,0.60390225]
[1739954204333,94.64007423,2722.0,2721.9,0.23173455]
[1739954206560,94.49687423,2722.0,2721.9,0.23173455]
[1739954207135,94.49687423,2722.0,2721.9,3.90563455]
[1739954207465,94.49687423,2722.0,2721.9,4.70863455]
[1739954207802,94.49687423,2722.0,2721.9,5.07920951]
[1739954208963,94.48952673,2722.0,2721.9,5.07920951]
[1739954211949,94.48952673,2722.0,2721.9,5.95453046]
[1739954214159,94.48952673,2722.0,2721.9,5.15153046]
[1739954214465,94.48952673,2722.0,2721.9,4.27620951]
[1739954216604,94.48952673,2722.0,2721.9,9.63620951]
[1739954218602,95.31222673,2722.0,2721.9,0.60230951]
[1739954219669,94.48952673,2722.0,2721.9,0.60230951]
[1739954219875,94.48952673,2722.0,2721.9,4.27620951]
[1739954220440,94.48952673,2722.0,2721.9,5.03050951]
[1739954222678,94.48952673,2722.0,2721.9,10.39050951]
[1739954227176,94.48952673,2722.0,2721.9,6.71660951]
[1739954227379,94.48952673,2722.0,2721.9,5.96230951]
[1739954228147,95.30852673,2722.0,2721.9,5.96230951]
[1739954228548,95.30852673,2722.0,2721.9,0.60230951]
[1739954231886,94.48952673,2722.0,2721.9,4.27620951]
[1739954232085,94.48952673,2722.0,2721.9,4.70384046]
[1739954233487,94.48952673,2722.0,2721.9,4.27620951]
[1739954234587,94.48952673,2722.0,2721.9,9.63620951]
[1739954236052,94.48952673,2722.0,2721.9,10.02267631]
[1739954237358,93.66135131,2722.0,2721.9,25.18048962]
[1739954238655,92.68638249,2722.0,2721.9,25.46200427]
[1739954241895,2.49e-06,2722.0,2721.9,25.76200427]
[1739954242679,2.49e-06,2722.0,2721.9,25.56200427]
[1739954244298,0.7706,2723.1,2722.5,3.67297]
[1739954244603,0.7706,2723.1,2722.6,9.30491]
[1739954244894,0.7706,2723.1,2722.6,10.602698]
[1739954247006,0.7706,2723.1,2722.7,0.60230951]
[1739954247215,0.75,2723.5,2722.7,6.76720951]
[1739954247412,0.75,2723.5,2722.8,3.67261]
[1739954247709,0.75,2723.5,2722.9,1.04398195]
[1739954247910,0.75,2723.5,2722.5,2.40868011]
[1739954247911,0.75,2722.8,2722.3,0.38664601]
[1739954248215,0.75,2722.4,2722.3,0.38664601]
[1739954249012,0.75,2722.4,2722.0,5.36]
[1739954249733,3.67337,2722.3,2722.0,5.36]
[1739954250281,0.7677,2722.2,2721.8,0.38664601]
[1739954250516,0.7677,2722.2,2721.6,3.0]
[1739954250719,0.7677,2722.2,2721.7,0.836]
[1739954254684,4.44123,2722.2,2721.7,0.836]
[1739954254888,4.47883,2722.1,2721.6,0.74926022]
[1739954255109,0.8052,2722.1,2721.6,0.74926022]
[1739954256742,0.8052,2722.5,2721.7,0.7765]
[1739954256901,0.8052,2722.5,2721.7,6.1365]
[1739954257239,4.4783,2722.5,2721.8,1.05967734]
[1739954257442,0.7884,2722.2,2721.8,1.05967734]
[1739954259097,0.7884,2722.2,2721.9,0.36903503]
[1739954259982,4.46198,2722.2,2721.9,0.36903503]
[1739954260599,4.46198,2722.2,2722.0,0.23069743]
[1739954260829,0.7884,2722.2,2722.0,0.23069743]
[1739954262259,0.7884,2722.2,2722.1,0.23069743]
[1739954264066,0.7884,2722.2,2721.8,0.36903503]
[1739954264268,0.7884,2722.2,2721.8,1.01686456]
[1739954265654,0.7884,2722.2,2721.9,0.230745]
[1739954266538,4.46196,2722.2,2721.9,0.230745]
[1739954267376,4.46196,2722.2,2722.0,0.230745]
[1739954268554,0.7884,2722.2,2722.0,0.230745]
[1739954268751,3.67363,2722.1,2722.0,0.230745]
[1739954268953,0.7884,2722.2,2721.8,0.36903503]
[1739954269156,3.67379,2722.0,2721.8,0.36903503]
[1739954269961,3.67363,2722.1,2721.8,0.36903503]
[1739954269962,7.34738,2722.1,2721.8,0.36903503]
[1739954270263,3.67379,2722.0,2721.9,0.23061574]
[1739954274172,3.67379,2722.0,2721.6,0.23061574]
[1739954274464,3.67379,2722.0,2721.6,0.97737872]
[1739954274767,3.67413,2721.8,2721.6,0.23061574]
[1739954275466,3.67413,2721.8,2721.7,0.23061574]
[1739954275674,4.49972,2721.9,2721.7,0.23061574]
[1739954276867,4.49972,2721.9,2721.5,1.19237994]
[1739954277879,4.49972,2721.9,2721.5,0.36917994]
[1739954278035,3.6741,2721.8,2721.5,0.36917994]
[1739954278435,3.6741,2721.8,2721.6,0.60010307]
[1739954278837,3.67405,2721.8,2721.6,0.60010307]
[1739954279774,3.67405,2721.8,2721.7,0.23092313]
[1739954281885,5.267725,2721.8,2721.7,0.23092313]
[1739954282490,4.42848,2721.7,2721.2,0.36966205]
[1739954282992,3.6743,2721.6,2721.2,0.36966205]
[1739954283314,3.67445,2721.5,2721.2,0.36966205]
[1739954283812,3.67471,2721.3,2721.2,0.36966205]
[1739954284174,4.47098,2721.4,2721.2,0.36966205]
[1739954284376,3.67471,2721.3,2721.2,0.23097515]
[1739954284787,4.47098,2721.4,2721.2,0.23097515]
[1739954285020,3.67471,2721.3,2721.2,0.23097515]
[1739954285319,8.14566,2721.4,2721.2,0.23097515]
[1739954285626,0.7963,2721.4,2721.2,0.23097515]
[1739954286224,3.67471,2721.3,2721.2,0.23097515]
[1739954287223,3.67471,2721.3,2721.1,0.71913521]
[1739954287431,3.67471,2721.3,2721.0,0.1498329]
[1739954287607,0.7963,2721.4,2721.0,0.1498329]
[1739954287808,3.67473,2721.3,2721.0,0.1498329]
[1739954288007,4.47095,2721.4,2721.0,0.1498329]
[1739954288206,3.67477,2721.3,2721.0,0.1498329]
[1739954288728,3.67492,2721.2,2721.0,0.1498329]
[1739954288897,3.67492,2721.2,2721.1,0.23072911]
[1739954290031,3.67498,2721.1,2721.0,0.1498329]
[1739954290327,3.67492,2721.2,2721.0,0.1498329]
[1739954290495,3.67498,2721.1,2721.0,0.1498329]
[1739954292111,3.67498,2721.1,2721.0,0.38050642]
[1739954292317,3.67492,2721.2,2721.0,0.38050642]
[1739954292516,7.34988,2721.2,2721.0,0.38050642]
[1739954292900,3.67492,2721.2,2721.0,0.38050642]
[1739954293104,3.67498,2721.1,2721.0,0.38050642]
[1739954293336,4.44468,2721.1,2721.0,0.38050642]
[1739954293529,5.17967,2721.1,2721.0,0.38050642]
[1739954295046,5.17967,2721.1,2721.0,0.1498329]
[1739954298141,4.44468,2721.1,2721.0,0.1498329]
[1739954298844,4.44835,2721.3,2721.0,0.1498329]
[1739954299610,3.67484,2721.2,2721.0,0.1498329]
[1739954299825,3.67498,2721.1,2721.0,0.1498329]
[1739954300446,4.44835,2721.3,2721.0,0.1498329]
[1739954300646,3.67486,2721.2,2721.0,0.1498329]
[1739954300967,4.44834,2721.3,2721.0,0.1498329]
[1739954301536,3.67488,2721.2,2721.0,0.1498329]
[1739954301733,3.67474,2721.3,2721.0,0.1498329]
[1739954302056,6.08294011,2721.7,2721.0,0.9497329]
[1739954302224,3.67439,2721.6,2721.0,1.43529916]
[1739954303257,6.08294011,2721.7,2721.1,0.23061969]
[1739954303439,2.40868011,2721.7,2721.2,3.67484]
[1739954303621,2.40868011,2721.7,2721.1,0.23061969]
[1739954303828,3.67479,2721.3,2721.1,0.23061969]
[1739954304159,4.27151909,2721.2,2721.1,0.23061969]
[1739954305058,6.10301801,2721.2,2721.1,0.23061969]
[1739954305260,3.67498,2721.1,2721.0,0.1498329]
[1739954305466,6.08366011,2721.1,2721.0,0.1498329]
[1739954306657,6.83446011,2721.1,2721.0,0.1498329]
[1739954307286,6.86446011,2721.1,2721.0,0.1498329]
[1739954307431,8.02194001,2721.1,2721.0,0.1498329]
[1739954307968,16.95194001,2721.1,2721.0,0.1498329]
[1739954308173,17.5486191,2721.1,2721.0,0.1498329]
[1739954313467,16.9986191,2721.1,2721.0,0.1498329]
[1739954316079,17.5486191,2721.1,2721.0,0.1498329]
[1739954319378,21.4246191,2721.1,2721.0,0.1498329]
[1739954319581,17.5486191,2721.1,2721.0,0.1498329]
[1739954319947,16.95194001,2721.1,2721.0,2.9e-06]
[1739954320144,3.67641,2720.1,2719.8,1.88801283]
[1739954320349,3.67641,2720.1,2719.9,0.72480128]
[1739954320550,3.6762,2720.2,2719.8,1.88801283]
[1739954320747,3.67626,2720.2,2719.8,1.88801283]
[1739954320950,3.67612,2720.3,2719.8,1.51877544]
[1739954321244,3.67624,2720.2,2719.8,1.51877544]
[1739954321685,3.67612,2720.3,2719.8,5.19549544]
[1739954321870,3.6762,2720.2,2719.9,0.52322605]
[1739954322067,3.6762,2720.2,2719.8,1.51877544]
[1739954322381,3.67594,2720.4,2719.9,0.8025]
[1739954322589,7.35146,2720.6,2720.1,0.8025]
[1739954322891,7.35147,2720.6,2720.1,0.8025]
[1739954323051,3.67592,2720.5,2720.1,0.8025]
[1739954323254,3.67592,2720.5,2720.1,1.27347496]
[1739954323448,3.676,2720.4,2720.1,1.27347496]
[1739954323752,3.676,2720.4,2720.2,0.23073961]
[1739954323959,3.67606,2720.3,2720.2,0.23073961]
[1739954324383,3.67593,2720.4,2720.2,0.23073961]
[1739954324563,3.67606,2720.3,2720.2,0.23073961]
[1739954325386,3.67593,2720.4,2720.2,0.23073961]
[1739954325797,3.67606,2720.3,2720.1,0.8025]
[1739954326570,3.6762,2720.2,2720.1,0.8025]
[1739954327282,3.6762,2720.2,2720.1,1.0332655]
[1739954328759,3.67608,2720.3,2720.1,0.8025]
[1739954330571,3.67608,2720.3,2719.8,1.90008613]
[1739954330782,3.67608,2720.3,2719.8,2.99377274]
[1739954331169,3.6762,2720.2,2719.8,2.99377274]
[1739954331995,3.6762,2720.2,2719.9,0.23082541]
[1739954332763,3.67628,2720.2,2719.9,0.23082541]
[1739954333197,3.67628,2720.2,2720.0,0.23082541]
[1739954333893,3.67633,2720.1,2720.0,0.23082541]
[1739954335092,3.67628,2720.2,2720.0,0.23082541]
[1739954336275,3.67628,2720.2,2720.1,0.23082541]
[1739954337000,3.67581,2720.5,2720.2,0.7536]
[1739954337605,3.67581,2720.5,2720.2,1.21968254]
[1739954338194,3.67581,2720.5,2720.2,0.7536]
[1739954339596,3.67581,2720.5,2720.3,0.60147136]
[1739954340503,3.23418011,2720.8,2720.3,0.60147136]
[1739954340504,3.67575,2720.6,2720.3,0.60147136]
[1739954340671,3.67579,2720.6,2720.3,0.60147136]
[1739954341218,7.35113,2720.7,2720.5,0.8053]
[1739954341574,7.35113,2720.7,2720.4,0.23132992]
[1739954341575,4.27241885,2720.6,2720.4,0.23132992]
[1739954342519,3.67574,2720.6,2720.4,0.23132992]
[1739954342688,3.67565,2720.6,2720.4,0.23132992]
[1739954342883,3.67579,2720.5,2720.4,0.23132992]
[1739954344076,3.67567,2720.6,2720.4,0.23132992]
[1739954344989,7.35143,2720.6,2720.4,0.23132992]
[1739954345397,3.67567,2720.6,2720.4,0.23132992]
[1739954345711,3.67567,2720.6,2720.3,0.8053]
[1739954345712,3.67567,2720.6,2720.5,0.23132992]
[1739954349298,4.45787,2720.6,2720.5,0.23132992]
[1739954349782,5.2054523,2720.6,2720.5,0.23132992]
[1739954351414,4.45787,2720.6,2720.5,0.23132992]
[1739954351788,3.67567,2720.6,2720.5,0.23132992]
[1739954353606,3.67567,2720.6,2720.5,1.04452992]
[1739954354817,3.67567,2720.6,2720.5,0.23132992]
[1739954356286,4.45337,2720.6,2720.5,0.23132992]
[1739954356487,5.26626,2720.6,2720.5,0.23132992]
[1739954357822,3.67621,2720.2,2720.0,0.788]
[1739954359195,7.35249,2720.2,2720.0,0.788]
[1739954359393,3.67621,2720.2,2720.0,0.788]
[1739954359591,3.67615,2720.3,2720.1,0.60454229]
[1739954359796,3.6762,2720.2,2720.1,0.60454229]
[1739954360791,3.67615,2720.3,2720.1,0.60454229]
[1739954361203,7.35232,2720.3,2720.1,0.60454229]
[1739954361429,3.67615,2720.3,2720.1,0.60454229]
[1739954362494,3.67615,2720.3,2720.2,0.60454229]
[1739954362923,7.35178,2720.5,2720.2,0.60454229]
[1739954363116,3.67588,2720.5,2720.2,0.60454229]
[1739954363316,3.67594,2720.4,2720.2,0.60454229]
[1739954364125,3.67606,2720.3,2720.2,0.60454229]
[1739954364445,3.67593,2720.4,2720.3,0.60454229]
[1739954367211,3.67593,2720.4,2720.3,0.23251111]
[1739954371130,3.67593,2720.4,2720.3,0.60475123]
[1739954373325,3.67566,2720.6,2720.3,0.60475123]
[1739954373652,3.67567,2720.6,2720.3,0.60475123]
[1739954373857,3.67567,2720.6,2720.4,0.7501]
[1739954374022,3.67567,2720.6,2720.4,1.35485123]
[1739954375622,4.21001089,2720.9,2720.4,1.35485123]
[1739954375828,7.35096,2720.8,2720.5,0.60475123]
[1739954376455,3.67546,2720.8,2720.5,0.60475123]
[1739954376781,3.67546,2720.8,2720.5,1.11151505]
[1739954377080,1.21001089,2720.9,2720.5,1.11151505]
[1739954377081,4.88533089,2720.9,2720.5,1.11151505]
[1739954377226,3.67546,2720.8,2720.6,0.60475123]
[1739954379062,3.67546,2720.8,2720.7,0.23251111]
[1739954385065,1.21001089,2720.9,2720.7,0.23251111]
[1739954385232,3.6753,2720.9,2720.7,0.23251111]
[1739954385828,3.6753,2720.9,2720.4,4.46275489]
[1739954386029,3.6753,2720.9,2720.4,5.88723961]
[1739954386463,3.6753,2720.9,2720.4,5.85048472]
[1739954387213,3.6753,2720.9,2720.5,0.23215009]
[1739954388514,3.67541,2720.8,2720.5,0.23215009]
[1739954388819,3.67541,2720.8,2720.6,0.23215009]
[1739954390041,3.67541,2720.8,2720.7,0.23215009]
[1739954391237,7.49038,2721.0,2720.7,0.23215009]
[1739954391449,3.67526,2720.9,2720.7,0.23215009]
[1739954392833,3.81515,2721.0,2720.7,0.23215009]
[1739954393209,3.81515,2721.0,2720.8,0.7828]
[1739954394635,3.81515,2721.0,2720.9,0.23211678]
[1739954394842,0.14,2721.0,2720.9,0.23211678]
[1739954397962,3.81485,2721.2,2720.9,0.23211678]
[1739954398159,3.67502,2721.1,2720.9,0.23211678]
[1739954398361,3.67498,2721.1,2720.9,0.23211678]
[1739954399766,3.67498,2721.1,2720.8,0.7828]
[1739954400581,0.14,2721.2,2720.8,4.98014805]
[1739954400874,3.81485,2721.2,2720.8,1.30484805]
[1739954401035,3.67498,2721.1,2720.8,1.30484805]
[1739954401234,3.67518,2721.0,2720.8,1.30484805]
[1739954401445,3.67518,2721.0,2720.8,0.7828]
[1739954401616,3.67519,2721.0,2720.5,0.8291]
[1739954401969,3.67519,2721.0,2720.5,4.50487]
[1739954402426,3.67519,2721.0,2720.6,0.2322198]
[1739954403816,3.67519,2721.0,2720.5,4.50487]
[1739954403817,3.67519,2721.0,2720.7,0.2322198]
[1739954404317,3.67519,2721.0,2720.7,0.70592878]
[1739954404925,3.67514,2721.0,2720.7,0.70592878]
[1739954405249,3.67514,2721.0,2720.7,0.2322198]
[1739954405456,3.67514,2721.0,2720.8,0.2322198]
[1739954406172,3.67525,2720.9,2720.8,0.2322198]
[1739954409350,4.49545,2720.9,2720.8,0.2322198]
[1739954409657,4.63545,2720.9,2720.8,0.2322198]
[1739954409861,5.58751009,2720.9,2720.8,0.2322198]
[1739954411749,3.67576,2720.6,2720.2,0.2322198]
[1739954412551,3.67588,2720.5,2720.2,0.2322198]
[1739954412870,3.67565,2720.6,2720.2,0.2322198]
[1739954413169,3.81527,2720.9,2720.4,3.67583]
[1739954413470,3.81527,2720.9,2720.5,0.45427882]
[1739954413767,0.14,2720.9,2720.6,4.50585]
[1739954414069,0.14,2720.9,2720.7,3.67552]
[1739954414369,0.14,2720.9,2720.8,0.8302]
[1739954414737,0.14,2720.9,2720.8,1.0624198]
[1739954415160,0.14,2720.9,2720.8,1.53622178]
[1739954415530,3.81505,2721.1,2720.8,1.53622178]
[1739954415971,3.81505,2721.1,2720.9,0.2322198]
[1739954416771,3.67511,2721.0,2720.9,0.2322198]
[1739954417151,3.67511,2721.0,2720.8,0.8302]
[1739954418348,0.14,2721.1,2720.9,0.2326521]
[1739954418549,3.81501,2721.1,2720.9,0.2326521]
[1739954418872,3.67511,2721.0,2720.9,0.2326521]
[1739954419273,7.49012,2721.1,2720.9,0.2326521]
[1739954419638,7.49009,2721.1,2720.9,0.2326521]
[1739954419840,3.81501,2721.1,2720.9,0.2326521]
[1739954420041,3.81501,2721.1,2721.0,0.2326521]
[1739954420363,7.49008,2721.1,2721.0,0.2326521]
[1739954420563,3.81501,2721.1,2721.0,0.2326521]
[1739954421473,4.642426,2721.1,2721.0,0.2326521]
[1739954421774,4.642426,2721.1,2720.5,0.7724]
[1739954421775,3.81501,2721.1,2720.5,0.7724]
[1739954422076,3.67525,2720.9,2720.5,0.7724]
[1739954422759,3.67541,2720.8,2720.5,0.7724]
[1739954423547,3.67513,2721.0,2720.6,0.2326966]
[1739954423878,3.67536,2720.9,2720.6,0.2326966]
[1739954424076,3.67513,2721.0,2720.6,0.2326966]
[1739954424378,3.67539,2720.8,2720.6,0.2326966]
[1739954425276,3.67539,2720.8,2720.7,0.2326966]
[1739954427478,3.81539,2720.8,2720.7,0.2326966]
[1739954427782,0.14,2720.8,2720.7,0.2326966]
[1739954429948,3.81538,2720.8,2720.7,0.2326966]
[1739954432392,0.14,2720.8,2720.7,0.2326966]
[1739954433649,0.14,2720.8,2720.7,1.0449966]
[1739954437378,3.81538,2720.8,2720.7,0.2326966]
[1739954437595,0.14,2720.8,2720.7,0.2326966]
[1739954439391,3.81538,2720.8,2720.7,0.2326966]
[1739954439573,0.14,2720.8,2720.7,0.2326966]
[1739954440264,3.81538,2720.8,2720.7,0.2326966]
[1739954443001,3.81538,2720.8,2720.7,0.57653059]
[1739954444294,3.81538,2720.8,2720.7,0.95029328]
[1739954444672,0.14,2720.8,2720.7,0.95029328]
[1739954444872,3.81538,2720.8,2720.7,0.95029328]
[1739954446411,0.14,2720.8,2720.7,0.95029328]
[1739954447498,3.81538,2720.8,2720.7,0.95029328]
[1739954447706,3.81538,2720.8,2720.7,1.22542507]
[1739954449472,0.14,2720.8,2720.7,1.22542507]
[1739954449805,3.81538,2720.8,2720.7,1.22542507]
[1739954450514,0.14,2720.8,2720.7,1.22542507]